Cogmind - Beta 16 --- EXPLORER MODE // 2025.11.22 @ 12:23:40 Player: rootmos Result: Destroyed by Y-54 Guardian with Gatling Laser Performance ------------- Evolutions (4) 2000 Regions Visited (11) 2200 Robots Destroyed (300) 1500 Value Destroyed (12889) 12889 Prototype IDs (22) 440 Alien Tech Used (0) 0 Bonus (443) 443 TOTAL SCORE: 19472 Bonus ------- Follower Combat Kills 161 Met Data Miner 300 Friendly Fire -18 Cogmind --------- Core Integrity 0/850 Matter 300/300 Energy 100/100 System Corruption 5% Temperature Cool (12) Movement Core (50) Location -6/Factory Parts ------- > --- POWER (2) -------- (None) > --- PROPULSION (2) --- (None) > --- UTILITY (8) ------ Advanced Sensor Array Advanced Targeting Computer > --- WEAPON (4) ------- (None) > --- INVENTORY (5) ---- (None) Peak State ------------ > --- POWER ------------ Light Angular Momentum Engine Light Angular Momentum Engine > --- PROPULSION ------- Flexi-carbon Leg Armored Leg > --- UTILITY ---------- Improved Cryofiber Web Advanced Heat Sink Large Storage Unit Advanced Weight Redist. System Triangulator Advanced Sensor Array Advanced Targeting Computer Improved Shield Generator > --- WEAPON ----------- Plasma Rifle Plasma Rifle Proton Cannon Coil Gun > --- INVENTORY -------- Light Angular Momentum Engine Light Angular Momentum Engine Light Angular Momentum Engine Fission Core Improved VSS Leg Improved Cooling System Improved Cooling System High-capacity Storage Unit High-capacity Battery Advanced Weight Redist. System Advanced Targeting Computer Improved Hardlight Generator Plasma Cannon Heavy Machine Gun Improved Proton Missile Launcher [Rating: 77] Favorites ----------- Power Light Angular Momentum Engine Engine Light Angular Momentum Engine Power Core Light Fission Core Propulsion Improved Titanium Leg Treads Light Treads Leg Improved Titanium Leg Utility Large Storage Unit Device Advanced Weight Redist. System Storage Large Storage Unit Processor Advanced Targeting Computer Hackware System Shield Protection Improved Medium Armor Plating Weapon Advanced Assault Cannon Energy Gun Plasma Rifle Energy Cannon Heavy Ion Cannon Ballistic Gun Coil Gun Ballistic Cannon Advanced Assault Cannon Launcher Proton Missile Launcher Slashing Weapon Axe Build | -11 -10 -9 -9 -8 -7 -7 -7 -6 -6 -6 -6 ------- Run | Yrd Mat Mat Min Mat Fac Low Dat Pro Fac Was Fac Slots Evolved 9 | . 1 2 . 2 2 . . . 2 . . Power 1 | . . 1 . . . . . . . . . Propulsion . | . . . . . . . . . . . . Utility 6 | . 1 1 . 1 1 . . . 2 . . Weapon 2 | . . . . 1 1 . . . . . . Parts Attached 224 | 10 3 14 5 16 66 . . 12 94 . 4 Power 40 | 1 1 1 1 3 12 . . 3 18 . . Engine 30 | 1 1 1 1 2 9 . . 3 12 . . Core 10 | . . . . 1 3 . . . 6 . . Reactor . | . . . . . . . . . . . . Propulsion 37 | 4 . 6 1 2 8 . . 1 15 . . Treads 13 | 2 . . . . . . . . 11 . . Leg 24 | 2 . 6 1 2 8 . . 1 4 . . Wheel . | . . . . . . . . . . . . Hover . | . . . . . . . . . . . . Flight . | . . . . . . . . . . . . Utility 76 | 3 2 3 1 4 20 . . 3 36 . 4 Device 37 | . . . . 1 8 . . . 25 . 3 Storage 8 | 1 1 2 . . 1 . . . 3 . . Processor 9 | 1 . . . . 2 . . 2 3 . 1 Hackware 1 | . . . . . . . . . 1 . . Protection 21 | 1 1 1 1 3 9 . . 1 4 . . Artifact . | . . . . . . . . . . . . Weapon 71 | 2 . 4 2 7 26 . . 5 25 . . Energy Gun 19 | 1 . 1 1 1 7 . . . 8 . . Energy Cannon 9 | . . . . . 3 . . . 6 . . Ballistic Gun 26 | 1 . 2 . 5 9 . . 2 7 . . Ballistic Cannon 13 | . . 1 . 1 6 . . 1 4 . . Launcher 3 | . . . 1 . . . . 2 . . . Special Weapon . | . . . . . . . . . . . . Impact Weapon . | . . . . . . . . . . . . Slashing Weapon 1 | . . . . . 1 . . . . . . Piercing Weapon . | . . . . . . . . . . . . Special Melee Weapon . | . . . . . . . . . . . . Unidentified Prototypes 7 | . . 1 . . 4 . . . 2 . . Parts Lost 53 | . . 2 5 . 7 . . 6 21 8 4 Power 13 | . . . 2 . 3 . . 1 5 2 . Propulsion 4 | . . . 1 . . . . . 2 1 . Utility 17 | . . 1 . . 1 . . 1 7 3 4 Weapon 19 | . . 1 2 . 3 . . 4 7 2 . Highest Loss Streak 8 | . . 1 5 . 2 . . 5 4 8 4 To Critical Strikes . | . . . . . . . . . . . . Average Backups 14 | 1 4 12 13 14 14 15 15 13 14 10 . Power . | . . . . 1 . . . . 1 . . Propulsion 1 | . 1 2 . 1 2 2 2 1 . . . Utility 8 | 1 2 6 6 6 8 11 11 9 10 9 . Weapon 2 | . . 3 5 4 2 2 2 1 2 . . Tool/Special . | . . . . . . . . . . . . Unused Backups 72 | . 1 6 . 13 16 . . . 28 8 . Power 10 | . . 1 . 3 1 . . . 5 . . Propulsion 11 | . . 1 . 2 4 . . . 4 . . Utility 38 | . 1 4 . 6 8 . . . 12 7 . Weapon 12 | . . . . 2 2 . . . 7 1 . Tool/Special 1 | . . . . . 1 . . . . . . Average Slot Usage (%) 97 | . 100 99 83 99 99 100 100 98 99 55 30 Engine 9 | . 12 20 8 12 11 14 14 13 6 3 . Core 3 | . . . . 3 2 . . . 5 3 . Treads 3 | . . . . . . . . . 7 6 . Leg 10 | . 25 19 14 16 14 14 14 13 4 . . Device 18 | . . . . 7 17 21 21 15 26 15 20 Storage 7 | . 12 12 10 8 7 7 7 7 6 2 . Processor 10 | . 12 10 10 8 7 7 7 12 13 7 5 Protection 7 | . 12 17 20 16 10 7 7 6 2 2 4 Energy Gun 8 | . 12 9 9 8 8 7 7 3 9 . . Energy Cannon 3 | . . . . . 4 7 7 7 4 6 . Ballistic Gun 6 | . 12 6 9 14 6 . . 4 5 . . Ballistic Cannon 5 | . . 3 . 1 8 14 14 9 4 5 . Peak Build Rating 77 | 7 8 16 16 37 57 57 57 60 77 65 24 Average Rating 53 | 5 8 13 13 29 51 57 57 56 71 35 20 On Entrance 31 | . 7 8 16 16 37 57 57 57 60 65 1 Avg Prop Armor Cover (%) 5 | . . . . . . . . . 5 . . Naked Turns 65 | . . . . . . . . . . 36 29 Heaviest Build 90 | 16 31 54 41 55 84 76 76 79 90 79 15 Greatest Support 57 | 40 20 20 23 30 49 49 49 49 57 40 3 Greatest Overweight (x) 10 | 1 1 5 3 2 2 1 1 3 3 10 4 Average Overweight (x) 1 | . . 1 1 1 1 1 1 1 . . 2 Largest Inventory Capacity 20 | 10 15 15 15 15 15 15 15 15 20 15 5 Average Capacity 14 | 8 12 15 15 15 15 15 15 15 15 9 5 Most Carried 16 | 2 9 15 15 15 15 15 15 15 16 15 5 Average Carried 14 | 1 4 13 13 14 14 15 15 13 14 9 . Final Capacity 15 | 10 15 15 15 15 15 15 15 15 15 5 5 Final Carried 15 | 2 8 14 15 15 15 15 15 15 15 5 . Class Distribution -------------------- 40% | Hacker-Tank 25% | Hacker-Gunner 20% | Hacker-Skirmisher 13% | Hacker-Mutant Dominant Class ---------------- Hacker-Mutant | -10/Materials Hacker-Mutant | -9/Materials Hacker-Mutant | -9/Mines Hacker-Tank | -8/Materials Hacker-Tank | -7/Factory Hacker-Tank | -7/Lower Caves Hacker-Tank | -7/Data Miner Hacker-Gunner | -6/Proximity Caves Hacker-Gunner | -6/Factory Hacker-Mutant | -6/Waste Hacker-Mutant | -6/Factory Resources | -11 -10 -9 -9 -8 -7 -7 -7 -6 -6 -6 -6 ----------- Run | Yrd Mat Mat Min Mat Fac Low Dat Pro Fac Was Fac Matter Collected 8337 | 266 82 338 139 352 2587 8 . 534 3934 . 97 Remotely . | . . . . . . . . . . . . Salvage Created 14022 | . 157 794 23 436 3873 . . 770 7969 . . Parts 664 | . 12 51 . 26 216 . . 39 320 . . Haulers Intercepted 2 | . . . . . 1 . . . 1 . . Recyclers Shooed 9 | . . 1 . 2 2 . . . 4 . . Parts Field Recycled . | . . . . . . . . . . . . Retrieved Matter . | . . . . . . . . . . . . Parts Self-Destructed . | . . . . . . . . . . . . Prevented . | . . . . . . . . . . . . Parts Restored . | . . . . . . . . . . . . Kills | -11 -10 -9 -9 -8 -7 -7 -7 -6 -6 -6 -6 ------- Run | Yrd Mat Mat Min Mat Fac Low Dat Pro Fac Was Fac Combat Hostiles Destroyed 253 | . 5 20 4 7 77 . . 17 123 . . Guns 112 | . 5 15 . 7 24 . . 2 59 . . Cannons 121 | . . 2 2 . 51 . . 10 56 . . AOE 12 | . . 3 2 . 1 . . 4 2 . . Classes Destroyed 16 | . 2 2 2 1 6 . . . 3 . . Worker 15 | . . . . . 5 . . . 10 . . Builder 9 | . . 2 . 1 2 . . . 4 . . Tunneler 1 | . . . . . . . . . 1 . . Hauler 2 | . . . . . 1 . . . 1 . . Recycler 14 | . . . . . 5 . . . 9 . . Mechanic 2 | . . . . . . . . . 2 . . Watcher 6 | . . . . 1 2 . . . 3 . . Swarmer 36 | . 2 6 . . 12 . . 5 11 . . Grunt 108 | . 3 10 . 4 28 . . 9 54 . . Duelist 7 | . . . . . 5 . . . 2 . . Protector 1 | . . . . . . . . . 1 . . Sentry 43 | . . 4 . 3 11 . . 1 24 . . Demolisher 2 | . . . 2 . . . . . . . . Hunter 12 | . . . . . 4 . . 2 6 . . Programmer 42 | . . . . . 17 . . . 25 . . Assembled 2 | . . . 2 . . . . . . . . Best Kill Streak 10 | . 3 6 2 3 6 . . 8 10 . . Combat Bots Only 8 | . 3 4 2 2 4 . . 8 6 . . Max Kills in Single Turn 5 | . 1 2 1 2 2 . . 5 2 . . Gunslinging 1 | . . . . . . . . . 1 . . Exploded 4 | . . 1 1 . 1 . . 4 1 . . Melee . | . . . . . . . . . . . . Uniques/NPCs Destroyed . | . . . . . . . . . . . . Combat | -11 -10 -9 -9 -8 -7 -7 -7 -6 -6 -6 -6 -------- Run | Yrd Mat Mat Min Mat Fac Low Dat Pro Fac Was Fac Hostile Shots Fired 1820 | . 11 90 23 26 482 . . 162 887 10 129 Missed 640 | . 2 34 4 5 178 . . 48 322 1 46 Hits 1180 | . 9 56 19 21 304 . . 114 565 9 83 Melee 40 | . . . 5 . 23 . . . 3 9 . Projectile 1140 | . 9 56 14 21 281 . . 114 562 . 83 AOE 16 | . . . 16 . . . . . . . . Critical Strikes 23 | . . 2 . . 6 . . 4 8 3 . Part Disruptions 3 | . . . . . 1 . . . 2 . . Damage Taken 9618 | . 59 370 545 182 2637 . . 1045 4108 261 411 Core 1364 | . 14 27 107 43 242 . . 79 454 169 229 Absorbed by Shields 1246 | . . . . . 436 . . 354 427 29 . Redirected to Shielding 83 | . . 6 42 5 24 . . . 6 . . Ignored by Resistances 6693 | . 36 242 313 112 1884 . . 826 2847 161 272 Core Remaining (%) 81 | 100 94 . 66 92 . . . 54 . . . Volleys Fired 556 | . 8 50 14 19 149 . . 40 274 2 . Largest 4 | . 2 2 2 3 4 . . 4 4 4 . Hottest 288 | . 60 78 78 107 215 . . 215 288 263 . Shots Fired 1920 | . 16 100 20 57 584 . . 126 1009 8 . Gun 1195 | . 16 80 6 53 300 . . 38 702 . . Cannon 714 | . . 20 7 4 284 . . 84 307 8 . Launcher 11 | . . . 7 . . . . 4 . . . Special . | . . . . . . . . . . . . Kinetic 895 | . 8 57 7 38 301 . . 57 423 4 . Thermal 597 | . . . . . 149 . . 38 406 4 . Explosive 8 | . . . 7 . . . . 1 . . . Electromagnetic 420 | . 8 43 6 19 134 . . 30 180 . . Robot Hit Streak 99 | . 13 27 6 30 39 . . 37 99 27 . Robot Miss Streak 4 | . . 4 2 3 4 . . 2 4 . . Penetration Max 2 | . . . . . . . . . 2 . . Secondary Targets 5 | . . 1 . . . . . . 4 . . Max Gunslinging Chain 1 | . . 1 . . . . . . 1 . . Shots Hit Robots 1482 | . 13 80 15 44 426 . . 101 795 8 . Core Hits 599 | . 7 33 15 18 185 . . 34 304 . 3 Critical Kills 15 | . . . . . 2 . . 1 12 . . Critical Parts Destroyed 19 | . . . . 1 1 . . 3 14 . . Critical Strikes 84 | . . 2 . 2 12 . . 9 59 . . Burn 27 | . . . . . 2 . . . 25 . . Meltdown 4 | . . . . . 1 . . . 3 . . Destroy 31 | . . . . 1 2 . . 4 24 . . Blast 15 | . . . . 1 5 . . 3 6 . . Corrupt 7 | . . 2 . . 2 . . 2 1 . . Melee Attacks . | . . . . . . . . . . . . Impact . | . . . . . . . . . . . . Slashing . | . . . . . . . . . . . . Piercing . | . . . . . . . . . . . . Sneak Attacks . | . . . . . . . . . . . . Combat Hostiles . | . . . . . . . . . . . . Follow-up Attacks . | . . . . . . . . . . . . Damage Inflicted 34860 | . 152 1334 228 789 9408 . . 2659 19963 247 80 Guns 18502 | . 141 883 39 725 3679 . . 546 12489 . . Cannons 13926 | . . 183 115 60 5197 . . 1720 6404 247 . Explosions 2242 | . . 251 73 . 512 . . 393 1013 . . Melee . | . . . . . . . . . . . . Ramming 190 | . 11 17 1 4 20 . . . 57 . 80 Kinetic 14243 | . 38 541 115 534 4294 . . 988 7612 121 . Thermal 13322 | . . 251 . . 3369 . . 850 8726 126 . Explosive 600 | . . . 73 . 298 . . 229 . . . Electromagnetic 6505 | . 103 525 39 251 1427 . . 592 3568 . . Impact . | . . . . . . . . . . . . Slashing . | . . . . . . . . . . . . Piercing . | . . . . . . . . . . . . Highest Corruption 7 | . . . . . 7 7 7 7 4 4 4 Average Corruption 4 | . . . . . 4 7 7 7 1 4 4 Corruption Purged 1 | . . . . . . . . . 1 . . Corruption Blocked . | . . . . . . . . . . . . Effects 236 | . . . . . 138 6 3 41 39 2 7 Message Errors 58 | . . . . . 32 1 . 13 9 1 2 Matter Fused 56 | . . . . . 33 3 1 8 10 . 1 Heat Flow Errors 26 | . . . . . 15 . . 5 4 . 2 Energy Discharges 26 | . . . . . 17 1 1 4 3 . . Parts Rejected 4 | . . . . . 2 . . . 1 1 . Parts Fused 3 | . . . . . 2 . . 1 . . . Data Loss (minor) 32 | . . . . . 17 1 . 7 5 . 2 Data Loss (major) 14 | . . . . . 9 . . 1 4 . . Misfires 10 | . . . . . 8 . . 1 1 . . Alerts 3 | . . . . . 1 . 1 . 1 . . Weapon Failures 4 | . . . . . 2 . . 1 1 . . Overload Shots . | . . . . . . . . . . . . Overflow Damage 338 | . . . . . 136 . . 24 178 . . Projectiles 226 | . . . . . 127 . . 2 97 . . Explosions 111 | . . . . . 9 . . 22 80 . . Melee 1 | . . . . . . . . . 1 . . Knockbacks 52 | . . 1 . 2 27 . . 5 17 . . Impact 2 | . . . . 1 1 . . . . . . Kinetic 46 | . . 1 . 1 25 . . 4 15 . . Secondary 4 | . . . . . 1 . . 1 2 . . Self-Inflicted Damage 437 | . . . 26 . 55 . . 42 277 . 37 Shots 14 | . . . 1 . 1 . . 3 9 . . Rammed 32 | . . . . . . . . . 4 . 28 Targets Rammed 51 | . 4 4 2 2 5 . . . 6 . 28 Kicked 18 | . 4 4 2 2 5 . . . 1 . . Crushed 1 | . . . . . . . . . 1 . . Highest Temperature 499 | . 124 162 54 216 396 . . 499 331 63 196 Average Temperature 92 | . 58 49 26 82 86 . . 198 94 42 104 Received Heat Transfer 3047 | . 42 240 . 108 572 . . 322 1553 . 210 Effects 22 | . . . . . 2 . . 16 4 . . Shutdowns 4 | . . . . . . . . 4 . . . Energy Bleed 1 | . . . . . . . . . 1 . . Interference 8 | . . . . . 2 . . 3 3 . . Short Circuit 2 | . . . . . . . . 2 . . . Damage (minor) 2 | . . . . . . . . 2 . . . Damage (major) 5 | . . . . . . . . 5 . . . Siege Activations . | . . . . . . . . . . . . Martial Activations . | . . . . . . . . . . . . Shielding Activations . | . . . . . . . . . . . . Robots Disrupted 2 | . . . . . . . . . 2 . . Combat Hostiles 2 | . . . . . . . . . 2 . . Robots Corrupted 2 | . . . . . . . . 1 1 . . Combat Hostiles 2 | . . . . . . . . 1 1 . . Parts Fried 8 | . . . . . . . . . 8 . . Impact Corruptions 1 | . . . . . . . . . 1 . . Robots Melted 7 | . . . . . 1 . . . 6 . . Combat Hostiles 6 | . . . . . 1 . . . 5 . . Parts Melted 51 | . . . . . 8 . . 3 40 . . Heat Transferred 26841 | . . 300 . . 5005 . . 1600 19762 174 . Parts Sabotaged . | . . . . . . . . . . . . Parts Stolen . | . . . . . . . . . . . . Parts Stripped . | . . . . . . . . . . . . Power Chain Reactions 17 | . . 3 . . 2 . . 3 9 . . Alert | -11 -10 -9 -9 -8 -7 -7 -7 -6 -6 -6 -6 ------- Run | Yrd Mat Mat Min Mat Fac Low Dat Pro Fac Was Fac Maximum Alert Level 1 | . . . . . . . . . 1 . . Low Security (%) 99 | 100 100 100 100 100 100 . . . 98 100 100 Level 1 . | . . . . . . . . . 1 . . Level 2 . | . . . . . . . . . . . . Level 3 . | . . . . . . . . . . . . Level 4 . | . . . . . . . . . . . . Level 5 . | . . . . . . . . . . . . High Security . | . . . . . . . . . . . . Max Security . | . . . . . . . . . . . . Peak Influence 307 | . 55 128 34 56 133 . . . 307 . . Initial 2 | . . 2 . . . . . . . . . Average 15 | . 11 16 . 3 11 . . . 23 . . Influence Increases 7748 | . 120 604 59 346 2296 . . 405 3918 . . Destroy 0b10 Robot/C 5080 | . 100 400 40 200 1540 . . 340 2460 . . Destroy 0b10 Robot/NC 255 | . . 10 . 15 75 . . . 155 . . Destroy Leader 1378 | . 20 130 10 74 456 . . 20 668 . . Allied During Kill 5 | . . . . 3 . . . . 2 . . Successful Hack 288 | . . 30 . 2 102 . . . 154 . . Disable Machine 128 | . . 12 4 4 24 . . . 84 . . Anti-Garrison Action 150 | . . . . . . . . . 150 . . Destroy Structure 209 | . . 7 5 3 84 . . . 110 . . Partial Spotted 30 | . . . . . . . . . 30 . . Lose Combat Pursuer 225 | . . 15 . 45 15 . . 45 105 . . Influence Decreases 7748 | . 110 614 59 346 2281 15 . 405 3918 . . Entered New Map 16 | . . 8 . . . 8 . . . . . Time Decay 7481 | . 110 586 39 331 2257 7 . 345 3806 . . Lost Part 236 | . . 20 20 . 24 . . 60 112 . . Lost Ally 15 | . . . . 15 . . . . . . . Squads Dispatched 91 | . 1 4 . . 30 . . 1 54 . 1 Investigation 26 | . 1 2 . . 8 . . 1 13 . 1 Extermination 38 | . . . . . 16 . . . 22 . . Reinforcement 14 | . . 2 . . 3 . . . 9 . . Assault 1 | . . . . . . . . . 1 . . Garrison 12 | . . . . . 3 . . . 9 . . Intercept . | . . . . . . . . . . . . Searches Triggered . | . . . . . . . . . . . . Data Miner Redirects 5 | . . . . . . . . . 5 . . Construction Impeded 3 | . . . . . 1 . . . 2 . . Haulers Reinforced 3 | . . . . . 1 . . . 2 . . Active Scanning Responses . | . . . . . . . . . . . . Cargo Convoy Interrupts . | . . . . . . . . . . . . Stealth | -11 -10 -9 -9 -8 -7 -7 -7 -6 -6 -6 -6 --------- Run | Yrd Mat Mat Min Mat Fac Low Dat Pro Fac Was Fac Distress Signals 19 | . . 3 . 8 1 . . . 7 . . Communications Jammed . | . . . . . . . . . . . . Distress Signals . | . . . . . . . . . . . . Times Spotted 355 | . 8 34 5 18 98 . . 22 163 6 1 Peak Tracking Total 9 | . 3 5 3 3 6 . . 9 6 6 1 Tactical Retreats 15 | . . 1 . 3 1 . . 3 7 . . Traps | -11 -10 -9 -9 -8 -7 -7 -7 -6 -6 -6 -6 ------- Run | Yrd Mat Mat Min Mat Fac Low Dat Pro Fac Was Fac Traps Triggered 23 | . . 1 . . 12 . . . 10 . . Indirectly 4 | . . . . . . . . . 4 . . Trap Hack Attempts . | . . . . . . . . . . . . Triggered . | . . . . . . . . . . . . Disarmed 4 | . . . . . 4 . . . . . . Reprogrammed . | . . . . . . . . . . . . Reused . | . . . . . . . . . . . . Traps Extracted . | . . . . . . . . . . . . Installed . | . . . . . . . . . . . . Triggered . | . . . . . . . . . . . . Machines | -11 -10 -9 -9 -8 -7 -7 -7 -6 -6 -6 -6 ---------- Run | Yrd Mat Mat Min Mat Fac Low Dat Pro Fac Was Fac Machines Disabled 36 | . . 3 1 1 6 . . 3 22 . . Max in Single Turn 5 | . . 2 1 . 1 . . 1 5 . . Garrison Access 2 | . . . . . 1 . . . 1 . . Machines Repaired . | . . . . . . . . . . . . Machines Dismantled . | . . . . . . . . . . . . Machines Sabotaged . | . . . . . . . . . . . . Overloaded Fab Kills . | . . . . . . . . . . . . Hacking | -11 -10 -9 -9 -8 -7 -7 -7 -6 -6 -6 -6 --------- Run | Yrd Mat Mat Min Mat Fac Low Dat Pro Fac Was Fac Machines Accessed 47 | . 1 5 . 2 16 . 4 1 17 . 1 Terminals 36 | . 1 5 . 2 15 . . 1 11 . 1 Fabricators 1 | . . . . . . . . . 1 . . Repair Stations . | . . . . . . . . . . . . Recycling Units 1 | . . . . . . . . . 1 . . Scanalyzers 3 | . . . . . . . . . 3 . . Garrison Access 2 | . . . . . 1 . . . 1 . . Total Hacks 163 | . 6 19 . 3 40 . 27 4 61 . 3 Successful 113 | . 3 14 . 2 25 . 27 4 35 . 3 Failed 50 | . 3 5 . 1 15 . . . 26 . . Catastrophic 17 | . 2 5 . . 5 . . . 5 . . Database Lockouts . | . . . . . . . . . . . . Manual 39 | . 5 12 . . 14 . 1 . 5 . 2 Terminals 105 | . 6 19 . 3 37 . . 4 33 . 3 Fabricators 4 | . . . . . . . . . 4 . . Repair Stations . | . . . . . . . . . . . . Recycling Units 1 | . . . . . . . . . 1 . . Scanalyzers 19 | . . . . . . . . . 19 . . Garrison Access 7 | . . . . . 3 . . . 4 . . Terminal Hacks 92 | . 3 14 . 2 24 . 27 4 15 . 3 Record 51 | . 3 12 . . 12 . 11 4 6 . 3 Part Schematic 12 | . . . . . 1 . 10 . 1 . . Robot Schematic 5 | . . . . . 1 . 3 . 1 . . Robot Analysis 2 | . . . . . . . . . 2 . . Prototype ID Bank 5 | . . 1 . 1 . . 3 . . . . Open DSF 3 | . . . . . 3 . . . . . . Branch Access Points 1 | . . . . . 1 . . . . . . Emergency Access Points 2 | . . 1 . . . . . . 1 . . Scanalyzer Index 2 | . . . . . 1 . . . 1 . . Locate Traps 7 | . . . . . 4 . . . 3 . . Disarm Traps 1 | . . . . . 1 . . . . . . Dispatch Records 1 | . . . . 1 . . . . . . . Fabricator Hacks 3 | . . . . . . . . . 3 . . Load Schematic 2 | . . . . . . . . . 2 . . Build 1 | . . . . . . . . . 1 . . Repair Station Hacks . | . . . . . . . . . . . . Recycling Unit Hacks 1 | . . . . . . . . . 1 . . Process 1 | . . . . . . . . . 1 . . Scanalyzer 16 | . . . . . . . . . 16 . . Insert Component 7 | . . . . . . . . . 7 . . Analyze 5 | . . . . . . . . . 5 . . Retrieve Study 4 | . . . . . . . . . 4 . . Garrison Access Hacks 1 | . . . . . 1 . . . . . . Seal Access 1 | . . . . . 1 . . . . . . Unauthorized Hacks . | . . . . . . . . . . . . Terminals . | . . . . . . . . . . . . Fabricators . | . . . . . . . . . . . . Repair Stations . | . . . . . . . . . . . . Recycling Units . | . . . . . . . . . . . . Scanalyzers . | . . . . . . . . . . . . Garrison Access . | . . . . . . . . . . . . Data Cores Recovered . | . . . . . . . . . . . . Used . | . . . . . . . . . . . . Hacking Detections 37 | . 1 4 . . 15 . . 1 15 . 1 Full Trace Events 26 | . 1 3 . . 8 . . 1 12 . 1 Feedback Events 1 | . . . . . 1 . . . . . . Corruption 1 | . . . . . 1 . . . . . . Feedback Blocked . | . . . . . . . . . . . . Robot Schematics Acquired 5 | . . . . . 1 . 3 . 1 . . Robots Built 3 | . . . . . . . . . 3 . . Authchips . | . . . . . . . . . . . . Time 67 | . . . . . . . . . 67 . . Total Robot Build Rating 12 | . . . . . . . . . 12 . . Part Schematics Acquired 17 | . . . . . 1 . 10 . 6 . . Parts Built . | . . . . . . . . . . . . Authchips . | . . . . . . . . . . . . Time . | . . . . . . . . . . . . Total Part Build Rating . | . . . . . . . . . . . . Part Studies Acquired 4 | . . . . . . . . . 4 . . Parts Repaired . | . . . . . . . . . . . . Time . | . . . . . . . . . . . . Parts Recycled . | . . . . . . . . . . . . Recycled Matter 125 | . . . . . . . . . 125 . . Retrieved Matter . | . . . . . . . . . . . . Retrieved Components . | . . . . . . . . . . . . Parts Scanalyzed 5 | . . . . . . . . . 5 . . Part Schematics Acquired 5 | . . . . . . . . . 5 . . Parts Damaged . | . . . . . . . . . . . . Bothacking | -11 -10 -9 -9 -8 -7 -7 -7 -6 -6 -6 -6 ------------ Run | Yrd Mat Mat Min Mat Fac Low Dat Pro Fac Was Fac Used RIF Installer . | . . . . . . . . . . . . Robots Hacked . | . . . . . . . . . . . . Non-combat . | . . . . . . . . . . . . Combat . | . . . . . . . . . . . . Robot Hacks Applied . | . . . . . . . . . . . . Relay Couplers Released 8 | . . . . . . . . . 8 . . Machine Destruction 1 | . . . . . . . . . 1 . . Programmers 7 | . . . . . . . . . 7 . . Fabnet Peak Effective % . | . . . . . . . . . . . . Robots Rewired . | . . . . . . . . . . . . Allies Hacked . | . . . . . . . . . . . . Hacks Repelled . | . . . . . . . . . . . . Allies | -11 -10 -9 -9 -8 -7 -7 -7 -6 -6 -6 -6 -------- Run | Yrd Mat Mat Min Mat Fac Low Dat Pro Fac Was Fac Total Allies 7 | . . . 3 . . . . . 3 1 . Largest Group 3 | . . . 2 2 . . . . 3 1 . Highest-Rated Group 90 | . . . 62 62 . . . . 90 31 . Highest-Rated Ally 31 | . . . 31 31 . . . . 30 31 . Total Orders . | . . . . . . . . . . . . Ally Attacks 58 | . . . . 38 . . . . 11 9 . Total Damage 947 | . . . . 451 . . . . 330 166 . Kills 5 | . . . . 4 . . . . 1 . . Allies Corrupted 1 | . . . . . . . . . 1 . . Allies Melted . | . . . . . . . . . . . . Intel | -11 -10 -9 -9 -8 -7 -7 -7 -6 -6 -6 -6 ------- Run | Yrd Mat Mat Min Mat Fac Low Dat Pro Fac Was Fac Active Infowar (turns) 15295 | . . . . 1897 1933 . . . 11122 85 258 Optics 5040 | . . . . . . . . . 4955 85 . Sensors 9522 | . . . . . . . . . 9185 79 258 Terrain 4092 | . . . . 1897 1933 . . . 262 . . Triangulation 2810 | . . . . . . . . . 2810 . . Robot Analysis Total 2 | . . . . . . . . . 2 . . Derelict Logs Recovered 1 | . . . . . . . . 1 . . . Drone Launches . | . . . . . . . . . . . . Drone Recoveries . | . . . . . . . . . . . . Exploration | -11 -10 -9 -9 -8 -7 -7 -7 -6 -6 -6 -6 ------------- Run | Yrd Mat Mat Min Mat Fac Low Dat Pro Fac Was Fac Turns Passed 27894 | 58 377 1644 1343 1901 8603 186 206 1446 11687 121 322 Spaces Moved 11873 | 35 217 549 533 858 3934 93 104 641 4634 117 158 Core 257 | 6 . . . . . . . . . 93 158 Treads 2863 | 7 . . . . . . . . 2832 24 . Legs 8753 | 22 217 549 533 858 3934 93 104 641 1802 . . Wheels . | . . . . . . . . . . . . Hover . | . . . . . . . . . . . . Flight . | . . . . . . . . . . . . Fastest Speed 50 | 50 120 190 190 190 190 200 200 200 160 50 50 Average Speed 208 | 118 143 255 240 201 197 200 200 200 219 97 177 Slowest Speed 550 | 190 190 470 330 260 270 200 200 340 400 550 250 Overloaded Moves . | . . . . . . . . . . . . Propulsion Burnouts . | . . . . . . . . . . . . Robots Hopped . | . . . . . . . . . . . . Potential Cave-ins . | . . . . . . . . . . . . Cave-ins Triggered . | . . . . . . . . . . . . Exploration Rate (%) 52 | 4 27 45 95 47 86 23 75 70 80 79 4 Regions Visited 11 Branch Regions 4 Pre-discovered Areas 1 | . . . . . . . 1 . . . . Known Exits Taken 8 | 1 1 1 1 1 1 . 1 1 . . . Unknown Exits Taken 1 | . . . . . . 1 . . . . . Scrap Searched 6 | . . . 3 . . 1 . 2 . . . Spaces Dug . | . . . . . . . . . . . . Terrain Destroyed 225 | . . 3 14 . 86 . . 13 109 . . Melee . | . . . . . . . . . . . . Projectile 81 | . . 1 1 . 34 . . 6 39 . . AOE 144 | . . 2 13 . 52 . . 7 70 . . Terrain Rammed . | . . . . . . . . . . . . Walls Destroyed . | . . . . . . . . . . . . Machines Disabled . | . . . . . . . . . . . . Actions | -11 -10 -9 -9 -8 -7 -7 -7 -6 -6 -6 -6 --------- Run | Yrd Mat Mat Min Mat Fac Low Dat Pro Fac Was Fac Total 13776 | 46 268 701 572 1018 4428 94 103 710 5526 118 192 Wait 610 | . 27 31 15 50 159 2 . 6 320 . . Move 11863 | 34 216 548 532 857 3933 92 103 640 4634 116 158 Hop . | . . . . . . . . . . . . Pick Up 170 | 2 7 26 3 28 28 . . 5 71 . . Fast Attach 27 | 7 . . 2 1 8 . . 3 5 . 1 Attach 51 | . 1 6 2 2 8 . . 6 21 . 5 Detach 6 | . . 2 . . 1 . . 2 1 . . Swap 203 | 3 3 13 2 20 64 . . 4 94 . . Drop 222 | . 2 21 . 39 63 . . 2 95 . . Fire 556 | . 8 50 14 19 149 . . 40 274 2 . Melee . | . . . . . . . . . . . . Ram 28 | . . . . . . . . . . . 28 Kick 18 | . 4 4 2 2 5 . . . 1 . . Crush 5 | . . . . . . . . . 5 . . Escape Stasis 15 | . . . . . 10 . . . 5 . . Rewire 2 | . . . . . . . . 2 . . . Trap . | . . . . . . . . . . . . Miscellaneous . | . . . . . . . . . . . . Route ------- -11/Scrapyard -10/Materials -9/Materials (discovered 3 exits: *Mat / *Min x2) -9/Mines (discovered 2 exits: *Mat x2) -8/Materials -7/Factory (discovered 8 exits: *Fac x4 / *Sto x2 / *Low x2) -7/Lower Caves -7/Data Miner -6/Proximity Caves -6/Factory (discovered 5 exits: *Fac x3 / *Low x2) -6/Waste -6/Factory History --------- Turn | Location | Event 37 | -11/Scrapyard | Identified exit to Materials 37 | -11/Scrapyard | Discovered exit to Materials (range 15) 59 | -11/Scrapyard | Entered Materials 59 | -10/Materials | Evolved 1 slot: Utility x1 236 | -10/Materials | Identified exit to Materials 236 | -10/Materials | Discovered exit to Materials (range 16) 305 | -10/Materials | Build established: Hacker-Mutant 436 | -10/Materials | Entered another Materials area 436 | -9/Materials | Evolved 2 slots: Power x1, Utility x1 1336 | -9/Materials | Identified exit to Materials 1336 | -9/Materials | Discovered exit to Materials (range 3) 1818 | -9/Materials | Identified exit to Mines 1818 | -9/Materials | Discovered exit to Mines (range 11) 1961 | -9/Materials | Discovered exit to Mines (range 10) 2080 | -9/Materials | Entered Mines 2081 | -9/Mines | Assembled infested the area 2185 | -9/Mines | Lost 5 parts (2p1n2w) 2372 | -9/Mines | Discovered exit to Materials (range 11) 2527 | -9/Mines | Received a Mining Laser from a helpful Derelict 3033 | -9/Mines | A weapon hastily lodged in a ceiling crevice suddenly fell to the ground 3168 | -9/Mines | Discovered exit to Materials (range 9) 3265 | -9/Mines | Received a Rocket Launcher from a helpful Derelict 3423 | -9/Mines | Entered Materials 3423 | -8/Materials | Accompanied by 2 allies 3423 | -8/Materials | Evolved 2 slots: Utility x1, Weapon x1 3428 | -8/Materials | Led the pair of lost Derelicts to an unsafe place 3727 | -8/Materials | Build established: Hacker-Tank 4286 | -8/Materials | Identified exit to Factory 4286 | -8/Materials | Discovered exit to Factory (range 16) 5324 | -8/Materials | Entered Factory 5324 | -7/Factory | Evolved 2 slots: Utility x1, Weapon x1 5854 | -7/Factory | Identified exit to Lower Caves 5854 | -7/Factory | Discovered exit to Lower Caves (range 7) 8324 | -7/Factory | Identified exit to Factory 8324 | -7/Factory | Discovered exit to Factory (range 5) 8873 | -7/Factory | Identified exit to Storage 10268 | -7/Factory | Discovered exit to Factory (range 11) 10468 | -7/Factory | Allied Derelicts emerged from ambush trap array 10749 | -7/Factory | Discovered exit to Factory (range 7) 12010 | -7/Factory | Garrison activated, responded to threat 12770 | -7/Factory | Discovered exit to Factory (range 16) 13927 | -7/Factory | Entered Lower Caves 14088 | -7/Lower Caves | A Derelict revealed a hidden shortcut to meet someone special 14113 | -7/Lower Caves | Entered Data Miner 14113 | -7/Data Miner | Identified exit to Proximity Caves 14113 | -7/Data Miner | Discovered exit to Proximity Caves (range 6) 14151 | -7/Data Miner | Met Data Miner 14225 | -7/Data Miner | Learned location of Section 7 (-2) 14225 | -7/Data Miner | Acquired the access code to Warlord's prototype stash 14271 | -7/Data Miner | Received God Mode back door access code from Data Miner 14319 | -7/Data Miner | Entered Proximity Caves 14409 | -6/Proximity Caves | Spotted B-75 Beast 14928 | -6/Proximity Caves | Attracted the attention of an 0b10 base 14991 | -6/Proximity Caves | Lost 5 parts (1p1u3w) 14997 | -6/Proximity Caves | Destroyed 8 combat bots 15133 | -6/Proximity Caves | Learned 8 Research zone layouts 15133 | -6/Proximity Caves | Learned 6 Lower Caves zone layouts 15133 | -6/Proximity Caves | Learned Armory trap positions 15245 | -6/Proximity Caves | Build established: Hacker-Gunner 15615 | -6/Proximity Caves | Learned Factory stockpile data 15737 | -6/Proximity Caves | Discovered exit to Factory (range 15) 15765 | -6/Proximity Caves | Entered Factory 15765 | -6/Factory | Evolved 2 slots: Utility x2 16948 | -6/Factory | Identified exit to Lower Caves 16948 | -6/Factory | Discovered exit to Lower Caves (range 13) 17477 | -6/Factory | Build established: Hacker-Skirmisher 18037 | -6/Factory | Identified exit to Factory 18037 | -6/Factory | Discovered exit to Factory (range 10) 18055 | -6/Factory | Garrison activated, responded to threat 18155 | -6/Factory | Incoming investigation squad redirected 18181 | -6/Factory | Build established: Hacker-Gunner 19065 | -6/Factory | Garrison activated, responded to threat 19114 | -6/Factory | Lost 3 parts (2u1w) 20047 | -6/Factory | Incoming investigation squad redirected 20282 | -6/Factory | Incoming investigation squad redirected 20555 | -6/Factory | Discovered exit to Factory (range 15) 21566 | -6/Factory | Fabricated L-41 Fighter (x3) 21596 | -6/Factory | Incoming investigation squad redirected 21986 | -6/Factory | Discovered exit to Factory (range 15) 22804 | -6/Factory | Build established: Hacker-Skirmisher 24305 | -6/Factory | Garrison activated, responded to threat 24407 | -6/Factory | Lost 3 parts (2p1n) 25592 | -6/Factory | Lost 4 parts (1u3w) 25706 | -6/Factory | Discovered exit to Lower Caves (range 5) 26210 | -6/Factory | Incoming investigation squad redirected 26460 | -6/Factory | Core integrity fell below 50% 27452 | -6/Factory | Sucked down chute 27452 | -6/Factory | Entered Waste 27453 | -6/Waste | Met a frightened Derelict 27464 | -6/Waste | Spotted C-40 Crusher 27470 | -6/Waste | Spotted C-40 Crusher 27474 | -6/Waste | Spotted C-40 Crusher 27492 | -6/Waste | Spotted C-40 Crusher 27495 | -6/Waste | Crushed by Compactor (1 part destroyed, 2 dropped) 27505 | -6/Waste | Crushed by Compactor (1 part destroyed, 1 dropped) 27512 | -6/Waste | Crushed by Compactor (1 part destroyed, 1 dropped) 27521 | -6/Waste | Crushed by Compactor (1 part destroyed, 1 dropped) 27524 | -6/Waste | Crushed by Compactor (1 part destroyed, 1 dropped) 27527 | -6/Waste | Crushed by Compactor (1 part destroyed, 1 dropped) 27529 | -6/Waste | Spotted C-40 Crusher 27532 | -6/Waste | Spotted C-40 Crusher 27537 | -6/Waste | Crushed by Compactor (1 part destroyed) 27567 | -6/Waste | Identified exit to Factory 27567 | -6/Waste | Discovered exit to Factory (range 12) 27568 | -6/Waste | Lost 8 parts (2p1n3u2w) 27573 | -6/Waste | Entered Factory 27789 | -6/Factory | Build established: Hacker-Mutant 27871 | -6/Factory | Core integrity fell below 20% 27895 | -6/Factory | Destroyed by Y-54 Guardian with Gatling Laser Last Messages --------------- 27636_ System corrupted: Heat flow error (+264). 27675_ System corrupted: Component data lost. 27698_ QM8C|WBNMKS>0QI0E:#39ZGJ:U&51Q 27717_ RZBAAYYEJMF HV7S0MLC3&OLYGI>/:FJRQURNYQ 27747_ System corrupted: Heat flow error (+101). 27797_ System corrupted: Matter fused (-5). 27831_ System corrupted: Component data lost. 27847_ ALERT: All DSF locations entering lockdown mode. 27860_ Imp. Light Armor Plating destroyed. 27860_ Slammed into Y-54 Guardian. 27873_ Imp. Thermal Generator destroyed. 27874_ Slammed into Y-54 Guardian. 27874_ Adv. Sensor Array broken. 27874_ Destabilizing: Short circuit. 27875_ Slammed into Y-54 Guardian. 27876_ Adv. Heat Sink destroyed. 27876_ Slammed into Y-54 Guardian. 27879_ Imp. Heat Sink destroyed. 27879_ Slammed into Y-54 Guardian. 27895_ Destabilizing: System corrupted (+1). Map ----- +----------------------------------------------------+ | ?????????????????????????????????????????????????? | | ?????????????????????????????????????????????????? | | ?????????????????????????????????????????????????? | | ?????????????????????????????????????????????????? | | ?????????????????????????????????????????????????? | | ?????????????????????????????????????????????????? | | ?????????????????????????????????????????????????? | | ?????????????????????????????????????????????????? | | ?????????????????????????????????????????????????? | | ?????????????????????????????????????????????????? | | ?????????????????????????????????????????????????? | | ?????????????????????????????????????????????????? | | ?????????????????????????????????????????????????? | | ?????????????????????????????????????????????????? | | ?????????????????????????????????????????????????? | | ?????????????????????????????????????????????????? | | ?????????????????????????????????????????????????? | | ?????????????????????????????????????????????????? | | ????????????????????????????##???????????????????? | | ????????????????????######## ######??????????????? | | ????????????????????# !#??????????????? | | #####????????########%%%% " " #??????????????? | | #????????# ! #%%% " " #??????????????? | | ########## #%%% " " #??????????????? | | + + """ !#% %Y " " #??????????????? | | # # "Y # % @" " #??????????????? | | # # """ # %% " " #??????????????? | | + + # %% " " #??????????????? | | # ######+# !! " " " " #??????????????? | | ##+## ###### # !! " " "R" #??????????????? | | ?# # !! """ #??????????????? | | ########### ####### #######+#+#####??????????????? | | # #?????# #??????????????????? | | + #?????####### #??????????????????? | | # #???????????# #??????????????????? | | """""" # #???????????# #??????????????????? | | """""" # #???????????# #??????????????????? | | """""" # #???????????# #??????????????????? | | """""" # #####???????# #??????????????????? | | # #???????# ??????????????????? | | """""" # #???????# ?????????????????? | | """""" # +???????# """ ]????????????????? | | """""" + #???????+ """ !=???????????????? | | """""" # #???????# """ ] ??????????????? | | # #???????# ?? ??????????????? | | #####+##### ######### "??? ???????????????? | | # # "?????????????????????? | | # # ??????????????????????? | | # """" # ??????????????????????? | | # """" + ??????????????????????? | +----------------------------------------------------+ Best States ------------- Heat Dissipation 103 Energy Generation 39 Energy Capacity 490 Matter Stores 300 Matter Capacity 300 Sight Range 22 Robot Scan Range 16 Terrain Scan Range 16 Terrain Scan Density 10 Additional Mass Support 9 Base Temperature (-) 150 Corruption Containment 8 Armor Coverage 450 Resistance: KI 35 Resistance: TH 35 Resistance: EX 35 Resistance: EM 35 Resistance: I 35 Resistance: S 35 Resistance: P 35 Core Shielding 30 Power Shielding 33 Weapon Cycling 15 Evasion (%) 55 Targeting Accuracy 8 Core Analysis 6 Armor Integrity Analysis 30 Recoil Reduction 2 Offensive Hacking 20 Defensive Hacking 10 Item Schematics ----------------- Arm. Leg | -7/Factory | Hacked Combat Drone Bay | -7/Data Miner | Free Lgt. Regenerative Plating | -7/Data Miner | Free Cld. Aerolev Unit | -7/Data Miner | Free Gravity Neutralizer | -7/Data Miner | Free Imp. Heavy Laser | -7/Data Miner | Free Field Propulsion Drive | -7/Data Miner | Free Imp. Launcher Guidance Computer | -7/Data Miner | Free Imp. Arc Projector | -7/Data Miner | Free Nuclear Pulse Array | -7/Data Miner | Free Antimatter Reactor | -7/Data Miner | Free Plasma Rifle | -6/Factory | Scanalyzed Hcp. Battery | -6/Factory | Scanalyzed Imp. Cooling System | -6/Factory | Scanalyzed IFF Parser | -6/Factory | Scanalyzed Imp. Particle Charger | -6/Factory | Hacked Power Amplifier | -6/Factory | Scanalyzed Robot Schematics ------------------ Y-54 Guardian | -7/Factory | Hacked L-41 Fighter | -7/Data Miner | Free E-15 Imp | -7/Data Miner | Free W-25 Informer | -7/Data Miner | Free R-06 Scavenger | -6/Factory | Hacked Fabricated ------------ L-41 Fighter | x3 | -6/Factory Repaired ---------- Nothing Studied --------- Lgt. Angular Momentum Engine | -6/Factory | Hacked Coil Gun | -6/Factory | Hacked Lgt. Fission Core | -6/Factory | Hacked Plasma Rifle | -6/Factory | Hacked Alien Tech Used ----------------- None Achievements -------------- DIY Cooler My Business Is Booming My Command Is Your Wish Spot Them First Challenges ------------ None Game ------ Seed TractorForceBlaster Manual? 0 Play Time 06:20:32 Cumulative 77.8 hours Start 2025.11.15 @ 09:05:36 End 2025.11.22 @ 12:23:40 Sessions 21 Manual Loads 0 Difficulty Explorer Special Mode None Game No. 28 Rogue 0 Adventurer 0 Explorer 28 Win Type - Total 0 Types 0/0/0/0/0/0/0/0/0/0 Lore% 19 Gallery% 28 Achievement% 18 Wizard Run 0 Options --------- Layout 0 ASCII 1 Keyboard 1 Movement Vi Keybinds 0 Fullscreen 2 Font 24/Smallcaps Map View 76x50 Zoom Use 0% Tactical HUD 1 Map Filters NONE Filters NONE Steam 0 RUN: def3791a-feec-4913-adec-038c67839fb3